[Event "*** Titled Tuesday Blitz"]
[Site "Chess.com"]
[Date "2019.09.03"]
[Round "5"]
[White "oskariot"]
[Black "riconaipe"]
[Result "1-0"]
[WhiteElo "2756"]
[BlackElo "2575"]
[TimeControl "180+2"]
[EndTime "16:04:17 PDT"]
[Termination "oskariot won by resignation"]

1. e4 {[%clk 0:02:58.2]} 1... c6 {[%clk 0:03:01.2]} 2. d4 {[%clk 0:02:55.7]}
2... d5 {[%clk 0:03:02.7]} 3. e5 {[%clk 0:02:57]} 3... g6 {[%clk 0:03:04.1]} 4.
f4 {[%clk 0:02:57.8]} 4... Bg7 {[%clk 0:03:04.9]} 5. c3 {[%clk 0:02:59.7]} 5...
Nh6 {[%clk 0:03:05.6]} 6. Nf3 {[%clk 0:03:01.6]} 6... O-O {[%clk 0:03:06.3]} 7.
Be2 {[%clk 0:03:03.1]} 7... f6 {[%clk 0:03:07.8]} 8. O-O {[%clk 0:03:04.3]} 8...
Bf5 {[%clk 0:03:05.4]} 9. h3 {[%clk 0:03:02.8]} 9... Be4 {[%clk 0:03:05.5]} 10.
Nbd2 {[%clk 0:02:56.9]} 10... f5 {[%clk 0:03:06.3]} 11. Nxe4 {[%clk 0:02:56.5]}
11... fxe4 {[%clk 0:03:05.9]} 12. Ng5 {[%clk 0:02:57.4]} 12... Qc8 {[%clk
0:03:02.9]} 13. g4 {[%clk 0:02:48.8]} 13... Nf7 {[%clk 0:03:01.7]} 14. Nxf7
{[%clk 0:02:49.3]} 14... Rxf7 {[%clk 0:03:02.4]} 15. f5 {[%clk 0:02:04.6]} 15...
gxf5 {[%clk 0:03:01.2]} 16. gxf5 {[%clk 0:02:06.5]} 16... Rxf5 {[%clk
0:03:02.1]} 17. Bg4 {[%clk 0:02:08.2]} 17... Rxf1+ {[%clk 0:03:00.2]} 18. Qxf1
{[%clk 0:02:10.1]} 18... e6 {[%clk 0:02:40.3]} 19. Qg2 {[%clk 0:02:04.4]} 19...
Na6 {[%clk 0:02:40.1]} 20. Bh6 {[%clk 0:02:05]} 20... Qc7 {[%clk 0:02:13.2]} 21.
Bxe6+ {[%clk 0:01:56.4]} 21... Kh8 {[%clk 0:02:14.4]} 22. Bg5 {[%clk 0:01:39.4]}
22... Re8 {[%clk 0:02:13.3]} 23. Qg4 {[%clk 0:01:23.8]} 23... c5 {[%clk
0:02:04.8]} 24. Rf1 {[%clk 0:01:04.3]} 24... cxd4 {[%clk 0:02:04.8]} 25. cxd4
{[%clk 0:01:06.2]} 25... Qb6 {[%clk 0:01:52.3]} 26. Bf7 {[%clk 0:00:54]} 26...
Qxd4+ {[%clk 0:01:48.5]} 27. Kh1 {[%clk 0:00:53.6]} 27... Qxe5 {[%clk
0:01:34.9]} 28. Bxe8 {[%clk 0:00:52.8]} 28... Qxe8 {[%clk 0:01:36.5]} 29. Rc1
{[%clk 0:00:48.6]} 29... Qf7 {[%clk 0:01:22.5]} 30. Rc8+ {[%clk 0:00:45.7]}
30... Bf8 {[%clk 0:01:22.8]} 31. Bh6 {[%clk 0:00:39]} 31... Qf1+ {[%clk
0:01:21.6]} 32. Kh2 {[%clk 0:00:40.6]} 32... Qf2+ {[%clk 0:01:20.2]} 33. Qg2
{[%clk 0:00:41.3]} 33... Qf4+ {[%clk 0:01:20.9]} 34. Bxf4 {[%clk 0:00:41.5]} 1-0

[Event "*** Titled Tuesday Blitz"]
[Site "Chess.com"]
[Date "2019.09.03"]
[Round "5"]
[White "beatles_22"]
[Black "GCamachoMartinez"]
[Result "1-0"]
[WhiteElo "2675"]
[BlackElo "2431"]
[TimeControl "180+2"]
[EndTime "16:04:47 PDT"]
[Termination "beatles_22 won by resignation"]

1. e4 {[%clk 0:03:01.5]} 1... e5 {[%clk 0:03:00.9]} 2. Nf3 {[%clk 0:03:02.7]}
2... Nf6 {[%clk 0:03:01.8]} 3. Nc3 {[%clk 0:03:03.5]} 3... Bb4 {[%clk 0:03:02]}
4. Nxe5 {[%clk 0:03:04.4]} 4... O-O {[%clk 0:03:03.1]} 5. Nd3 {[%clk 0:03:01.4]}
5... Bxc3 {[%clk 0:03:03.4]} 6. dxc3 {[%clk 0:03:03.3]} 6... Nxe4 {[%clk
0:03:05.3]} 7. c4 {[%clk 0:03:04.9]} 7... d6 {[%clk 0:03:02.9]} 8. Be2 {[%clk
0:03:06.3]} 8... Nd7 {[%clk 0:02:54.7]} 9. O-O {[%clk 0:03:07.7]} 9... Re8
{[%clk 0:02:47.5]} 10. Re1 {[%clk 0:03:09]} 10... Nec5 {[%clk 0:02:43.5]} 11.
Nf4 {[%clk 0:03:00.6]} 11... Ne6 {[%clk 0:02:43.5]} 12. Nd5 {[%clk 0:03:00.4]}
12... Nf6 {[%clk 0:02:44.3]} 13. Bd3 {[%clk 0:02:56.2]} 13... Nxd5 {[%clk
0:02:44.1]} 14. cxd5 {[%clk 0:02:58.1]} 14... Nf8 {[%clk 0:02:45.3]} 15. Bd2
{[%clk 0:02:46.7]} 15... Bd7 {[%clk 0:02:32.8]} 16. c4 {[%clk 0:02:45.2]} 16...
Qf6 {[%clk 0:02:29.2]} 17. Bc3 {[%clk 0:02:45.5]} 17... Qg5 {[%clk 0:02:25.8]}
18. Qf3 {[%clk 0:02:45.2]} 18... Rxe1+ {[%clk 0:02:18.7]} 19. Rxe1 {[%clk
0:02:45.1]} 19... Re8 {[%clk 0:02:20.6]} 20. Re3 {[%clk 0:02:39.3]} 20... Rxe3
{[%clk 0:02:12.7]} 21. fxe3 {[%clk 0:02:41.2]} 21... Qg4 {[%clk 0:01:54.3]} 22.
Kf2 {[%clk 0:02:38.4]} 22... Qh4+ {[%clk 0:01:51.9]} 23. Kg1 {[%clk 0:02:36.9]}
23... Ng6 {[%clk 0:01:40.6]} 24. g3 {[%clk 0:02:24.9]} 24... Qe7 {[%clk
0:01:40.9]} 25. Qe4 {[%clk 0:02:08.5]} 25... Qxe4 {[%clk 0:01:41.1]} 26. Bxe4
{[%clk 0:02:10.4]} 26... f6 {[%clk 0:01:42.3]} 27. Kg2 {[%clk 0:02:04.4]} 27...
Ne7 {[%clk 0:01:43.2]} 28. h3 {[%clk 0:02:03.8]} 28... Bf5 {[%clk 0:01:44.1]}
29. Bf3 {[%clk 0:02:00.5]} 29... Bd3 {[%clk 0:01:43.9]} 30. b3 {[%clk
0:01:58.6]} 30... Bb1 {[%clk 0:01:44.7]} 31. a3 {[%clk 0:01:59.4]} 31... Bc2
{[%clk 0:01:43.7]} 32. b4 {[%clk 0:02:00]} 32... Bd3 {[%clk 0:01:44.5]} 33. c5
{[%clk 0:02:00.4]} 33... Bc4 {[%clk 0:01:45.4]} 34. e4 {[%clk 0:02:01]} 34...
Ng6 {[%clk 0:01:35.6]} 35. Kf2 {[%clk 0:01:41.6]} 35... Ne5 {[%clk 0:01:35.3]}
36. Bd1 {[%clk 0:01:43]} 36... f5 {[%clk 0:01:24.3]} 37. exf5 {[%clk 0:01:36.8]}
37... Bxd5 {[%clk 0:01:24.7]} 38. Bxe5 {[%clk 0:01:38.4]} 38... dxe5 {[%clk
0:01:25.6]} 39. Bf3 {[%clk 0:01:40.3]} 39... c6 {[%clk 0:01:20.1]} 40. Bxd5+
{[%clk 0:01:20.3]} 40... cxd5 {[%clk 0:01:21.2]} 41. b5 {[%clk 0:01:22.2]} 41...
Kf7 {[%clk 0:01:21.6]} 42. g4 {[%clk 0:01:23.1]} 42... d4 {[%clk 0:01:18.7]} 43.
Kf3 {[%clk 0:01:21.9]} 43... d3 {[%clk 0:01:19.1]} 44. Ke3 {[%clk 0:01:23.1]}
44... e4 {[%clk 0:01:20.6]} 45. c6 {[%clk 0:01:24]} 45... bxc6 {[%clk
0:01:21.7]} 46. bxc6 {[%clk 0:01:25.1]} 46... Ke7 {[%clk 0:01:23.6]} 47. g5
{[%clk 0:01:26.5]} 47... Kd6 {[%clk 0:01:24.6]} 48. f6 {[%clk 0:01:28]} 48...
gxf6 {[%clk 0:01:25.2]} 49. gxf6 {[%clk 0:01:29.9]} 1-0

[Event "*** Titled Tuesday Blitz"]
[Site "Chess.com"]
[Date "2019.09.03"]
[Round "5"]
[White "chesstatour"]
[Black "NemtsevIgor"]
[Result "0-1"]
[WhiteElo "2016"]
[BlackElo "2307"]
[TimeControl "180+2"]
[EndTime "16:04:51 PDT"]
[Termination "NemtsevIgor won on time"]

1. c4 {[%clk 0:03:01.9]} 1... c6 {[%clk 0:02:59.4]} 2. d4 {[%clk 0:02:58.7]}
2... d6 {[%clk 0:03:00.7]} 3. f4 {[%clk 0:02:49.3]} 3... h6 {[%clk 0:03:01.5]}
4. e4 {[%clk 0:02:49.8]} 4... g5 {[%clk 0:03:02.2]} 5. fxg5 {[%clk 0:02:48.2]}
5... hxg5 {[%clk 0:03:03.5]} 6. Bxg5 {[%clk 0:02:47.9]} 6... Bg7 {[%clk
0:03:02.4]} 7. Nc3 {[%clk 0:02:45.1]} 7... Nd7 {[%clk 0:03:02.9]} 8. Nf3 {[%clk
0:02:44.8]} 8... Nf8 {[%clk 0:03:03.5]} 9. Be2 {[%clk 0:02:34.5]} 9... Ne6
{[%clk 0:03:04.5]} 10. Be3 {[%clk 0:02:35.1]} 10... Nh6 {[%clk 0:03:04.4]} 11.
d5 {[%clk 0:02:16.7]} 11... Ng4 {[%clk 0:03:00.9]} 12. dxe6 {[%clk 0:01:19.1]}
12... Nxe3 {[%clk 0:03:00.9]} 13. exf7+ {[%clk 0:01:13.1]} 13... Kf8 {[%clk
0:03:01.9]} 14. Qd3 {[%clk 0:00:49.3]} 14... Nxg2+ {[%clk 0:03:02.4]} 15. Kd2
{[%clk 0:00:21.2]} 15... Bh6+ {[%clk 0:03:00.1]} 16. Kc2 {[%clk 0:00:22.2]}
16... Nf4 {[%clk 0:02:50.8]} 17. Qd1 {[%clk 0:00:20.2]} 17... Qb6 {[%clk
0:02:46.3]} 18. b3 {[%clk 0:00:19.1]} 18... Bg7 {[%clk 0:02:41.6]} 19. Rb1
{[%clk 0:00:10.8]} 19... Qe3 {[%clk 0:02:41.9]} 20. Qd2 {[%clk 0:00:07.9]} 20...
Qxc3+ {[%clk 0:02:29.8]} 21. Qxc3 {[%clk 0:00:08.4]} 21... Bxc3 {[%clk
0:02:30.8]} 22. Kxc3 {[%clk 0:00:07.3]} 22... Nxe2+ {[%clk 0:02:31.5]} 23. Kd3
{[%clk 0:00:07.4]} 23... Nf4+ {[%clk 0:02:31.5]} 24. Ke3 {[%clk 0:00:08.5]}
24... e5 {[%clk 0:02:31]} 25. c5 {[%clk 0:00:06.2]} 25... Rh3 {[%clk 0:02:19.8]}
26. cxd6 {[%clk 0:00:05.4]} 26... Bg4 {[%clk 0:02:20.3]} 27. Rbf1 {[%clk
0:00:04.8]} 27... Kxf7 {[%clk 0:02:18.7]} 28. Rhg1 {[%clk 0:00:04]} 28... Bxf3
{[%clk 0:02:14.9]} 29. Rxf3 {[%clk 0:00:04.3]} 29... Rxf3+ {[%clk 0:02:16]} 30.
Kxf3 {[%clk 0:00:05]} 30... Rd8 {[%clk 0:02:16.1]} 31. Rd1 {[%clk 0:00:03.9]}
31... Ke6 {[%clk 0:02:16.1]} 32. h4 {[%clk 0:00:03.1]} 32... Rxd6 {[%clk
0:02:16.5]} 33. Rc1 {[%clk 0:00:02.4]} 33... Rd3+ {[%clk 0:02:16.5]} 34. Kg4
{[%clk 0:00:03.7]} 34... Kf6 {[%clk 0:02:11.7]} 35. h5 {[%clk 0:00:03.3]} 35...
Rd2 {[%clk 0:02:04.7]} 36. h6 {[%clk 0:00:03.5]} 36... Rg2+ {[%clk 0:02:04.5]}
37. Kf3 {[%clk 0:00:03.9]} 37... Rh2 {[%clk 0:02:05.1]} 38. Rd1 {[%clk
0:00:02.3]} 38... Rh3+ {[%clk 0:02:04.6]} 39. Kg4 {[%clk 0:00:02.6]} 39... Rxh6
{[%clk 0:02:04.7]} 40. Rd7 {[%clk 0:00:02.7]} 40... Ne6 {[%clk 0:02:05.6]} 41.
Rxb7 {[%clk 0:00:02.1]} 41... Rg6+ {[%clk 0:02:00.9]} 42. Kf3 {[%clk 0:00:02.3]}
42... Rg7 {[%clk 0:02:01.3]} 0-1

[Event "*** Titled Tuesday Blitz"]
[Site "Chess.com"]
[Date "2019.09.03"]
[Round "5"]
[White "NTBT_DHS"]
[Black "GM_dmitrij"]
[Result "1-0"]
[WhiteElo "2711"]
[BlackElo "2953"]
[TimeControl "180+2"]
[EndTime "16:05:09 PDT"]
[Termination "NTBT_DHS won by checkmate"]

1. d4 {[%clk 0:03:01.9]} 1... d5 {[%clk 0:02:59.1]} 2. c4 {[%clk 0:03:02.4]}
2... c6 {[%clk 0:02:58.3]} 3. cxd5 {[%clk 0:03:03.5]} 3... cxd5 {[%clk
0:03:00.2]} 4. Bf4 {[%clk 0:03:05]} 4... Nf6 {[%clk 0:03:01]} 5. Nc3 {[%clk
0:03:05.9]} 5... Nc6 {[%clk 0:03:01.6]} 6. Nf3 {[%clk 0:03:07.3]} 6... Bf5
{[%clk 0:03:02.2]} 7. Rc1 {[%clk 0:03:08]} 7... e6 {[%clk 0:03:03.3]} 8. e3
{[%clk 0:03:08.4]} 8... Be7 {[%clk 0:03:04]} 9. h3 {[%clk 0:03:06.6]} 9... O-O
{[%clk 0:03:02.4]} 10. Be2 {[%clk 0:03:07.5]} 10... Ne4 {[%clk 0:03:00.8]} 11.
O-O {[%clk 0:03:05.7]} 11... Rc8 {[%clk 0:02:59]} 12. Na4 {[%clk 0:02:58.2]}
12... Na5 {[%clk 0:02:34.2]} 13. a3 {[%clk 0:02:21]} 13... Nc4 {[%clk
0:02:23.9]} 14. Qb3 {[%clk 0:01:42.5]} 14... Ncd2 {[%clk 0:02:17.3]} 15. Qxb7
{[%clk 0:01:42.5]} 15... Nxf1 {[%clk 0:02:05.9]} 16. Rxc8 {[%clk 0:01:39.7]}
16... Qxc8 {[%clk 0:02:07.8]} 17. Qxe7 {[%clk 0:01:40.7]} 17... Nfd2 {[%clk
0:02:00]} 18. Nxd2 {[%clk 0:01:38.7]} 18... Nxd2 {[%clk 0:02:01.9]} 19. Nc5
{[%clk 0:01:36.5]} 19... a5 {[%clk 0:01:55.7]} 20. Bb5 {[%clk 0:01:29.7]} 20...
Nc4 {[%clk 0:01:38.9]} 21. Nd7 {[%clk 0:01:22.5]} 21... Nxb2 {[%clk 0:01:05.4]}
22. Bd6 {[%clk 0:01:04.9]} 22... Rd8 {[%clk 0:00:53.9]} 23. Nb6 {[%clk
0:01:04.4]} 23... Qc1+ {[%clk 0:00:20.8]} 24. Kh2 {[%clk 0:01:04.6]} 24... Rb8
{[%clk 0:00:18.5]} 25. Be8 {[%clk 0:01:01.6]} 25... h6 {[%clk 0:00:20.4]} 26.
Bxf7+ {[%clk 0:00:51.7]} 26... Kh8 {[%clk 0:00:21.6]} 27. Bxb8 {[%clk
0:00:51.8]} 27... Kh7 {[%clk 0:00:14.5]} 28. Be5 {[%clk 0:00:44.3]} 28... Nd3
{[%clk 0:00:15.8]} 29. Bg8+ {[%clk 0:00:42]} 29... Kg6 {[%clk 0:00:14.6]} 30.
Qxg7+ {[%clk 0:00:42.7]} 30... Kh5 {[%clk 0:00:16.5]} 31. Bf7+ {[%clk
0:00:43.5]} 31... Kh4 {[%clk 0:00:18.4]} 32. Bg3# {[%clk 0:00:43.9]} 1-0

[Event "*** Titled Tuesday Blitz"]
[Site "Chess.com"]
[Date "2019.09.03"]
[Round "5"]
[White "vinniethepooh"]
[Black "MasterKroket"]
[Result "1-0"]
[WhiteElo "2596"]
[BlackElo "2426"]
[TimeControl "180+2"]
[EndTime "16:05:12 PDT"]
[Termination "vinniethepooh won by resignation"]

1. d4 {[%clk 0:03:01.9]} 1... Nf6 {[%clk 0:03:00.8]} 2. c4 {[%clk 0:03:02.7]}
2... e6 {[%clk 0:03:02.3]} 3. Nc3 {[%clk 0:03:04.1]} 3... Bb4 {[%clk 0:03:03.4]}
4. e3 {[%clk 0:03:05.4]} 4... O-O {[%clk 0:03:03.3]} 5. Bd3 {[%clk 0:03:07]}
5... d5 {[%clk 0:03:03.5]} 6. Nf3 {[%clk 0:03:08.9]} 6... c5 {[%clk 0:03:04.3]}
7. O-O {[%clk 0:03:09.6]} 7... Nc6 {[%clk 0:03:05.8]} 8. cxd5 {[%clk 0:03:10.5]}
8... cxd4 {[%clk 0:02:59.8]} 9. exd4 {[%clk 0:03:11.1]} 9... exd5 {[%clk
0:02:53.7]} 10. Ne5 {[%clk 0:03:09.1]} 10... Re8 {[%clk 0:02:27.6]} 11. Bf4
{[%clk 0:03:09.3]} 11... Bf8 {[%clk 0:02:06.9]} 12. Re1 {[%clk 0:03:03.8]} 12...
Be6 {[%clk 0:02:04.8]} 13. Rc1 {[%clk 0:02:45.6]} 13... Nxe5 {[%clk 0:02:04.3]}
14. dxe5 {[%clk 0:02:27.6]} 14... Nd7 {[%clk 0:02:02.2]} 15. Nb5 {[%clk
0:02:03.9]} 15... Rc8 {[%clk 0:01:53.6]} 16. Rxc8 {[%clk 0:01:31.4]} 16... Qxc8
{[%clk 0:01:53.7]} 17. Nxa7 {[%clk 0:01:33.3]} 17... Qa8 {[%clk 0:01:48.5]} 18.
Nb5 {[%clk 0:01:28.6]} 18... Qxa2 {[%clk 0:01:48]} 19. Nc7 {[%clk 0:01:22.7]}
19... Rc8 {[%clk 0:01:46.3]} 20. Nxe6 {[%clk 0:01:12.9]} 20... fxe6 {[%clk
0:01:48.2]} 21. Qh5 {[%clk 0:01:05.9]} 21... h6 {[%clk 0:01:20.1]} 22. Qg6
{[%clk 0:01:03.9]} 22... Nc5 {[%clk 0:01:14.4]} 23. Bb1 {[%clk 0:00:34.9]} 23...
Qxb2 {[%clk 0:01:00.6]} 24. Bxh6 {[%clk 0:00:34.9]} 24... Rc6 {[%clk 0:00:45.7]}
25. Qh7+ {[%clk 0:00:22.8]} 25... Kf7 {[%clk 0:00:46.5]} 26. Bg6+ {[%clk
0:00:22.4]} 26... Ke7 {[%clk 0:00:48]} 27. Bxg7 {[%clk 0:00:17.5]} 27... Bxg7
{[%clk 0:00:49.2]} 28. Qxg7+ {[%clk 0:00:19.4]} 28... Kd8 {[%clk 0:00:50.8]} 29.
h4 {[%clk 0:00:18.9]} 29... Ne4 {[%clk 0:00:45.8]} 30. Bxe4 {[%clk 0:00:14.3]}
30... dxe4 {[%clk 0:00:47.7]} 31. Rd1+ {[%clk 0:00:14]} 31... Kc8 {[%clk
0:00:49.2]} 32. Qf8+ {[%clk 0:00:12.1]} 1-0

[Event "*** Titled Tuesday Blitz"]
[Site "Chess.com"]
[Date "2019.09.03"]
[Round "5"]
[White "Renier07"]
[Black "Last7Samurai"]
[Result "0-1"]
[WhiteElo "2596"]
[BlackElo "2781"]
[TimeControl "180+2"]
[EndTime "16:05:13 PDT"]
[Termination "Last7Samurai won by resignation"]

1. d4 {[%clk 0:03:01.9]} 1... d5 {[%clk 0:02:57.4]} 2. c4 {[%clk 0:03:02.3]}
2... c6 {[%clk 0:02:57.9]} 3. Nc3 {[%clk 0:03:02.8]} 3... Nf6 {[%clk 0:02:58.7]}
4. Nf3 {[%clk 0:03:03.4]} 4... e6 {[%clk 0:02:59.8]} 5. Bg5 {[%clk 0:03:03.5]}
5... dxc4 {[%clk 0:03:01]} 6. a4 {[%clk 0:03:01.2]} 6... b5 {[%clk 0:03:01.2]}
7. axb5 {[%clk 0:03:02]} 7... cxb5 {[%clk 0:03:01.8]} 8. Nxb5 {[%clk 0:03:03.3]}
8... Qb6 {[%clk 0:03:02.2]} 9. Na3 {[%clk 0:03:00.1]} 9... Bxa3 {[%clk
0:02:57.2]} 10. Qa4+ {[%clk 0:02:58]} 10... Bd7 {[%clk 0:02:51]} 11. Qxa3 {[%clk
0:02:57.9]} 11... Nc6 {[%clk 0:02:51.8]} 12. Bxf6 {[%clk 0:02:47.9]} 12... gxf6
{[%clk 0:02:51.2]} 13. e3 {[%clk 0:02:48.8]} 13... Qb4+ {[%clk 0:02:44.3]} 14.
Qxb4 {[%clk 0:02:47.2]} 14... Nxb4 {[%clk 0:02:46.2]} 15. Kd2 {[%clk 0:02:47.1]}
15... Rg8 {[%clk 0:02:38.2]} 16. Ra5 {[%clk 0:02:19]} 16... Bc6 {[%clk
0:02:32.1]} 17. Ne1 {[%clk 0:02:14.1]} 17... Bd5 {[%clk 0:02:19.5]} 18. Kc3
{[%clk 0:01:56.2]} 18... Nc6 {[%clk 0:02:06.1]} 19. Rc5 {[%clk 0:01:56.6]} 19...
Ne7 {[%clk 0:01:53.2]} 20. f3 {[%clk 0:01:40]} 20... f5 {[%clk 0:01:47]} 21.
Bxc4 {[%clk 0:01:34.4]} 21... Bxc4 {[%clk 0:01:48.9]} 22. Kxc4 {[%clk
0:01:33.9]} 22... Nd5 {[%clk 0:01:43.5]} 23. e4 {[%clk 0:01:18.2]} 23... fxe4
{[%clk 0:01:40.2]} 24. fxe4 {[%clk 0:01:18.5]} 24... Ne3+ {[%clk 0:01:41.2]} 25.
Kc3 {[%clk 0:01:12.7]} 25... Rb8 {[%clk 0:01:42.6]} 26. g3 {[%clk 0:01:08.5]}
26... Nd1+ {[%clk 0:01:42]} 27. Kd2 {[%clk 0:01:07.7]} 27... Nf2 {[%clk
0:01:41.8]} 28. Rf1 {[%clk 0:00:53.8]} 28... Nxe4+ {[%clk 0:01:42.5]} 29. Ke3
{[%clk 0:00:54.3]} 29... Nxc5 {[%clk 0:01:41.7]} 30. dxc5 {[%clk 0:00:56]} 30...
Rxb2 {[%clk 0:01:43.3]} 31. Nf3 {[%clk 0:00:51.5]} 31... Rc2 {[%clk 0:01:31.4]}
32. Ra1 {[%clk 0:00:50.1]} 32... Rxc5 {[%clk 0:01:25.3]} 33. Rxa7 {[%clk
0:00:50.4]} 33... Kf8 {[%clk 0:01:26.4]} 34. Ke4 {[%clk 0:00:42.9]} 34... Rc4+
{[%clk 0:01:19]} 35. Ke3 {[%clk 0:00:43.2]} 35... Rc3+ {[%clk 0:01:17.8]} 36.
Ke2 {[%clk 0:00:43.9]} 36... Kg7 {[%clk 0:01:17.1]} 37. Ne5 {[%clk 0:00:44.7]}
37... Rf8 {[%clk 0:01:17.4]} 38. Nd7 {[%clk 0:00:36.1]} 38... Rfc8 {[%clk
0:01:12.3]} 39. Ne5 {[%clk 0:00:34.2]} 39... R8c7 {[%clk 0:01:13.4]} 40. Ra4
{[%clk 0:00:34.3]} 40... Rc2+ {[%clk 0:01:13]} 41. Kf3 {[%clk 0:00:35.7]} 41...
R7c3+ {[%clk 0:01:13.1]} 42. Kg4 {[%clk 0:00:35.9]} 42... Rxh2 {[%clk
0:01:11.7]} 43. Rf4 {[%clk 0:00:36.1]} 43... h5+ {[%clk 0:01:09.9]} 44. Kg5
{[%clk 0:00:36.5]} 44... Rxg3+ {[%clk 0:01:10.6]} 0-1

[Event "*** Titled Tuesday Blitz"]
[Site "Chess.com"]
[Date "2019.09.03"]
[Round "5"]
[White "Semajkcalbk"]
[Black "FedaMaster"]
[Result "0-1"]
[WhiteElo "2435"]
[BlackElo "2598"]
[TimeControl "180+2"]
[EndTime "16:05:23 PDT"]
[Termination "FedaMaster won by resignation"]

1. d4 {[%clk 0:02:57.9]} 1... Nf6 {[%clk 0:02:59.8]} 2. c4 {[%clk 0:02:58.9]}
2... g6 {[%clk 0:03:00.7]} 3. Nc3 {[%clk 0:02:59.9]} 3... d5 {[%clk 0:03:02]} 4.
Bg5 {[%clk 0:03:00.1]} 4... Bg7 {[%clk 0:02:58.8]} 5. e3 {[%clk 0:02:59.8]} 5...
c5 {[%clk 0:02:52.6]} 6. Bxf6 {[%clk 0:01:55.2]} 6... Bxf6 {[%clk 0:02:52.6]} 7.
cxd5 {[%clk 0:01:56.5]} 7... cxd4 {[%clk 0:02:50.2]} 8. exd4 {[%clk 0:01:58.4]}
8... Qb6 {[%clk 0:02:30.9]} 9. Nf3 {[%clk 0:00:59.5]} 9... Qxb2 {[%clk
0:01:51.5]} 10. Rc1 {[%clk 0:00:46.9]} 10... O-O {[%clk 0:01:43.6]} 11. Qd2
{[%clk 0:00:40.2]} 11... Qxd2+ {[%clk 0:01:40.9]} 12. Kxd2 {[%clk 0:00:42.1]}
12... Bg4 {[%clk 0:01:42.3]} 13. Ke3 {[%clk 0:00:37.3]} 13... Bxf3 {[%clk
0:01:34.8]} 14. gxf3 {[%clk 0:00:37.9]} 14... Nd7 {[%clk 0:01:33.2]} 15. Ne4
{[%clk 0:00:36.8]} 15... Bg7 {[%clk 0:01:20.3]} 16. d6 {[%clk 0:00:26.1]} 16...
Bh6+ {[%clk 0:01:09.1]} 17. f4 {[%clk 0:00:24.6]} 17... exd6 {[%clk 0:00:47]}
18. Nxd6 {[%clk 0:00:22.5]} 18... Nf6 {[%clk 0:00:34]} 19. Bc4 {[%clk 0:00:15]}
19... Nh5 {[%clk 0:00:28.7]} 20. Kf3 {[%clk 0:00:13.9]} 20... Bxf4 {[%clk
0:00:28.9]} 21. Nxb7 {[%clk 0:00:07.3]} 21... Bxc1 {[%clk 0:00:25.4]} 22. Rxc1
{[%clk 0:00:09.2]} 22... Rab8 {[%clk 0:00:22.2]} 23. Nc5 {[%clk 0:00:10.6]}
23... Rfd8 {[%clk 0:00:21.6]} 24. d5 {[%clk 0:00:10.6]} 24... Rbc8 {[%clk
0:00:19.5]} 25. Ne4 {[%clk 0:00:11.4]} 25... Kg7 {[%clk 0:00:19.1]} 26. d6
{[%clk 0:00:09]} 26... f5 {[%clk 0:00:19.4]} 0-1

[Event "*** Titled Tuesday Blitz"]
[Site "Chess.com"]
[Date "2019.09.03"]
[Round "5"]
[White "minnesotachessmaster"]
[Black "tonyq11"]
[Result "1/2-1/2"]
[WhiteElo "1968"]
[BlackElo "2183"]
[TimeControl "180+2"]
[EndTime "16:05:24 PDT"]
[Termination "Game drawn by agreement"]

1. e4 {[%clk 0:03:01]} 1... e5 {[%clk 0:02:59.5]} 2. f4 {[%clk 0:03:00.5]} 2...
exf4 {[%clk 0:02:58.2]} 3. Nf3 {[%clk 0:03:01.1]} 3... d5 {[%clk 0:02:59.2]} 4.
exd5 {[%clk 0:03:01.3]} 4... Nf6 {[%clk 0:03:00.2]} 5. Bb5+ {[%clk 0:02:56.9]}
5... Bd7 {[%clk 0:02:41.1]} 6. Bc4 {[%clk 0:02:44.9]} 6... Bg4 {[%clk
0:02:25.3]} 7. O-O {[%clk 0:02:43.8]} 7... Be7 {[%clk 0:02:20.6]} 8. Nc3 {[%clk
0:02:43]} 8... O-O {[%clk 0:02:19.5]} 9. d4 {[%clk 0:02:43.2]} 9... Nbd7 {[%clk
0:02:12.8]} 10. Bxf4 {[%clk 0:02:42.1]} 10... Nb6 {[%clk 0:02:13.5]} 11. Bb3
{[%clk 0:02:37.8]} 11... Nfxd5 {[%clk 0:02:12.4]} 12. Nxd5 {[%clk 0:02:33.5]}
12... Nxd5 {[%clk 0:02:13.5]} 13. Qd2 {[%clk 0:02:30.2]} 13... Be6 {[%clk
0:01:54.4]} 14. Bg3 {[%clk 0:02:22.6]} 14... Bd6 {[%clk 0:01:48.8]} 15. Bxd6
{[%clk 0:01:57.9]} 15... Qxd6 {[%clk 0:01:50.7]} 16. Ng5 {[%clk 0:01:57.8]}
16... c6 {[%clk 0:01:29.2]} 17. Qd3 {[%clk 0:01:30.1]} 17... f5 {[%clk
0:01:15.5]} 18. Nxe6 {[%clk 0:01:28.2]} 18... Qxe6 {[%clk 0:01:14.6]} 19. Rae1
{[%clk 0:01:28.8]} 19... Qd7 {[%clk 0:01:06.9]} 20. Re5 {[%clk 0:01:26.1]} 20...
Kh8 {[%clk 0:00:54.6]} 21. Rexf5 {[%clk 0:01:17.1]} 21... Rxf5 {[%clk
0:00:54.9]} 22. Qxf5 {[%clk 0:01:11.7]} 22... Qxf5 {[%clk 0:00:53.4]} 23. Rxf5
{[%clk 0:01:12]} 23... Nf6 {[%clk 0:00:52.4]} 24. Re5 {[%clk 0:01:06.5]} 24...
Re8 {[%clk 0:00:45.3]} 25. Rxe8+ {[%clk 0:01:05.8]} 25... Nxe8 {[%clk
0:00:47.2]} 26. Kf2 {[%clk 0:01:06.2]} 26... g6 {[%clk 0:00:48.6]} 27. Ke3
{[%clk 0:01:03.3]} 27... Kg7 {[%clk 0:00:50]} 28. Be6 {[%clk 0:01:00.7]} 28...
Kf6 {[%clk 0:00:48.9]} 29. Bc4 {[%clk 0:00:53.2]} 29... Nd6 {[%clk 0:00:49.9]}
30. Bd3 {[%clk 0:00:53.9]} 30... Ke6 {[%clk 0:00:41.8]} 31. c4 {[%clk
0:00:52.2]} 31... Nf7 {[%clk 0:00:42.6]} 32. Be4 {[%clk 0:00:46.3]} 32... Kd6
{[%clk 0:00:42.6]} 33. b4 {[%clk 0:00:44.8]} 33... b6 {[%clk 0:00:43.1]} 34. g4
{[%clk 0:00:30.8]} 34... c5 {[%clk 0:00:40.6]} 35. bxc5+ {[%clk 0:00:22.8]}
35... bxc5 {[%clk 0:00:42.5]} 36. Bd5 {[%clk 0:00:20.3]} 1/2-1/2